bitfinex-derivatives/quotes_BNBF0:USTF0_20250329
["timestamp","ask_amount","ask_price","bid_price","bid_amount"]
[1743282828728,1.28,603.02,602.72,0.33182904]
[1743282828929,1.28,603.02,602.8,0.28853927]
[1743282829130,0.933,603.01,602.8,0.28853927]
[1743282829331,0.933,603.01,602.72,0.33182904]
[1743282829525,0.933,603.01,602.8,0.28853927]
[1743282831631,0.933,603.01,602.72,0.33182904]
[1743282832025,0.933,603.01,602.8,0.2885309]
[1743282832225,0.933,603.01,602.72,0.33182904]
[1743282832527,0.933,603.01,602.8,0.2885309]
[1743282832830,0.933,603.01,602.72,0.33182904]
[1743282833223,0.933,603.01,602.8,0.2885309]
[1743282833424,0.933,603.01,602.72,0.33182904]
[1743282833825,0.933,603.01,602.73,0.28854764]
[1743282834027,0.933,603.01,602.74,0.33181803]
[1743282836333,1.427,603.0,602.74,0.33181803]
[1743282837429,1.167,602.99,602.74,0.33181803]
[1743282839334,0.64,602.98,602.74,0.33181803]
[1743282841837,0.63410193,602.98,602.74,0.33181803]
[1743282842435,1.167,602.99,602.74,0.33181803]
[1743282847637,0.933,602.98,602.74,0.33181803]
[1743282852951,1.089,602.97,602.74,0.33181803]
[1743282856251,2.364,602.97,602.74,0.33181803]
[1743282864756,3.384,602.97,602.74,0.33181803]
[1743282873868,4.457,602.97,602.74,0.33181803]
[1743282875369,4.457,602.97,602.58,1.23690288]
[1743282875769,3.368,602.97,602.61,0.28862063]
[1743282876671,3.368,602.97,602.58,1.23690288]
[1743282876971,3.368,602.97,602.61,0.28863859]
[1743282878269,2.093,602.97,602.61,0.28863859]
[1743282879367,1.062,602.96,602.61,0.28863859]
[1743282879775,1.062,602.96,602.11,1.23690288]
[1743282879969,1.062,602.96,602.57,0.28870564]
[1743282880174,0.934,602.95,602.57,0.28870564]
[1743282880376,0.934,602.95,602.26,1.23690288]
[1743282880674,0.934,602.95,602.57,0.28868887]
[1743282880869,0.934,602.95,602.27,0.33207697]
[1743282881269,0.934,602.95,602.57,0.28868887]
[1743282881573,0.934,602.95,602.27,0.33207697]
[1743282881770,0.934,602.95,602.57,0.28868767]
[1743282882168,0.934,602.95,602.27,0.33207697]
[1743282882570,0.934,602.95,602.57,0.28868767]
[1743282882770,0.934,602.95,602.27,0.33207697]
[1743282883170,0.934,602.95,602.57,0.28868767]
[1743282883372,0.934,602.95,602.27,0.33207697]
[1743282883778,2.385,602.95,602.57,0.28868767]
[1743282883974,2.385,602.95,602.27,0.33207697]
[1743282884380,2.385,602.95,602.57,0.28868767]
[1743282884581,2.385,602.95,602.27,0.33207697]
[1743282885079,2.385,602.95,602.57,0.28868767]
[1743282885281,2.385,602.95,602.27,0.33207697]
[1743282885482,2.385,602.95,602.28,0.28869965]
[1743282885679,4.124,602.95,602.28,0.28869965]
[1743282885879,4.124,602.95,602.29,0.33206594]
[1743282887074,4.758,602.95,602.29,0.33206594]
[1743282889983,6.003,602.95,602.29,0.33206594]
[1743282897193,1.14049609,602.94,602.29,0.33206594]
[1743282898192,5.069,602.95,602.29,0.33206594]
[1743282901690,6.003,602.95,602.29,0.33206594]
[1743282904190,1.14002313,602.94,602.29,0.33206594]
[1743282904789,1.14002313,602.93,602.29,0.33206594]
[1743282905296,3.918,602.95,602.29,0.33206594]
[1743282905297,1.14002313,602.92,602.29,0.33206594]
[1743282905497,1.43471969,602.91,602.29,0.33206594]
[1743282905797,1.43465623,602.9,602.29,0.33206594]
[1743282905990,1.43465623,602.89,602.29,0.33206594]
[1743282906195,1.43465623,602.88,602.29,0.33206594]
[1743282906396,1.43465623,602.87,602.29,0.33206594]
[1743282906596,1.43465623,602.86,602.29,0.33206594]
[1743282906792,2.06965623,602.85,602.29,0.33206594]
[1743282906993,1.43465623,602.84,602.29,0.33206594]
[1743282907195,1.43465623,602.83,602.29,0.33206594]
[1743282907395,1.43465623,602.82,602.29,0.33206594]
[1743282907599,1.43382099,602.81,602.29,0.33206594]
[1743282907791,3.72760933,602.8,602.29,0.33206594]
[1743282907993,3.72760933,602.79,602.29,0.33206594]
[1743282908196,1.43382099,602.78,602.29,0.33206594]
[1743282908396,3.726733,602.77,602.29,0.33206594]
[1743282908596,1.43382099,602.76,602.29,0.33206594]
[1743282908796,0.924,602.78,602.29,0.33206594]
[1743282908797,1.43382099,602.75,602.29,0.33206594]
[1743282909100,1.43382099,602.74,602.29,0.33206594]
[1743282909312,1.43382099,602.73,602.29,0.33206594]
[1743282909496,1.43382099,602.72,602.29,0.33206594]
[1743282909798,1.43263397,602.71,602.29,0.33206594]
[1743282910098,1.43263397,602.7,602.29,0.33206594]
[1743282910298,1.43263397,602.69,602.29,0.33206594]
[1743282910491,1.43263397,602.68,602.29,0.33206594]
[1743282910693,1.43263397,602.67,602.29,0.33206594]
[1743282910895,1.14002313,602.68,602.29,0.33206594]
[1743282911095,1.43191623,602.67,602.29,0.33206594]
[1743282911300,1.43189166,602.66,602.29,0.33206594]
[1743282911494,1.43189166,602.65,602.29,0.33206594]
[1743282911696,1.14002313,602.67,602.29,0.33206594]
[1743282911897,1.4314688,602.66,602.29,0.33206594]
[1743282912096,1.4314688,602.65,602.29,0.33206594]
[1743282912294,1.14002313,602.66,602.29,0.33206594]
[1743282912498,1.43107475,602.65,602.29,0.33206594]
[1743282912699,1.43107475,602.64,602.29,0.33206594]
[1743282912898,1.43107475,602.63,602.29,0.33206594]
[1743282913096,1.14002313,602.65,602.29,0.33206594]
[1743282913295,1.14002313,602.63,602.29,0.33206594]
[1743282914002,1.14002313,602.62,602.29,0.33206594]
[1743282914400,1.382,602.61,602.29,0.33206594]
[1743282919598,1.329,602.6,602.29,0.33206594]
[1743282921206,1.466,602.59,602.29,0.33206594]
[1743282922503,1.325,602.58,602.29,0.33206594]
[1743282923108,1.325,602.58,601.71,1.23690288]
[1743282923309,1.325,602.58,601.73,0.33237498]
[1743282923510,1.325,602.58,602.17,0.28883263]
[1743282923707,1.325,602.58,601.73,0.33237498]
[1743282924110,1.325,602.58,602.17,0.28889258]
[1743282924307,2.26,602.58,601.73,0.33237498]
[1743282924809,2.26,602.58,602.17,0.28889258]
[1743282925210,2.26,602.58,601.73,0.33237498]
[1743282925405,2.26,602.58,602.17,0.28889258]
[1743282925808,2.26,602.58,601.73,0.33237498]
[1743282926004,2.26,602.58,602.17,0.28889258]
[1743282926411,2.26,602.58,601.73,0.33237498]
[1743282926612,2.26,602.58,602.17,0.28889258]
[1743282927013,2.26,602.58,601.73,0.33237498]
[1743282927313,2.26,602.58,602.17,0.28889258]
[1743282927509,2.26,602.58,601.73,0.33237498]
[1743282927910,2.26,602.58,602.17,0.28889258]
[1743282928213,2.26,602.58,601.73,0.33237498]
[1743282928414,2.26,602.58,602.17,0.28889258]
[1743282928811,2.26,602.58,601.73,0.33237498]
[1743282929007,2.26,602.58,602.17,0.28889258]
[1743282929414,2.26,602.58,601.73,0.33237498]
[1743282929612,2.26,602.58,602.17,0.28889258]
[1743282930013,2.26,602.58,601.73,0.33237498]
[1743282930215,2.26,602.58,602.17,0.28889258]
[1743282930615,2.26,602.58,601.79,1.23690288]
[1743282930816,2.26,602.58,602.17,0.28888538]
[1743282931016,3.845,602.58,602.17,0.28888538]
[1743282931218,3.845,602.58,601.8,0.33233632]
[1743282932010,3.845,602.58,601.88,1.23690288]
[1743282932216,3.845,602.58,601.89,0.33228663]
[1743282933620,3.845,602.58,601.95,1.23690288]
[1743282933924,3.845,602.58,601.96,0.33224798]
[1743282935825,3.845,602.58,602.12,1.23690288]
[1743282937828,3.845,602.58,602.03,1.23690288]
[1743282941428,3.845,602.58,602.04,1.23690288]
[1743282943530,4.793,602.58,602.04,1.23690288]
[1743282943829,4.793,602.58,602.03,1.23690288]
[1743282945123,4.793,602.58,602.05,1.23690288]
[1743282946825,4.793,602.58,602.01,0.28888299]
[1743282948833,4.793,602.58,601.96,0.33224798]
[1743282949131,4.793,602.58,602.01,0.28889378]
[1743282951831,4.793,602.58,601.96,0.33224798]
[1743282952035,4.793,602.58,602.01,0.28889378]
[1743282954835,4.793,602.58,601.97,1.23690288]
[1743282955032,4.793,602.58,601.96,1.56915086]
[1743282955236,4.793,602.58,602.01,0.28889258]
[1743282956733,6.236,602.58,602.01,0.28889258]
[1743282956938,6.236,602.58,602.02,1.23690288]
[1743282957239,1.14136638,602.57,602.02,1.23690288]
[1743282958038,3.341,602.58,602.02,1.23690288]
[1743282958941,3.341,602.58,602.01,0.28889258]
[1743282960340,3.976,602.58,602.01,0.28889258]
[1743282960537,4.998,602.58,602.01,0.28889258]
[1743282960741,1.14216412,602.57,602.01,0.28889258]
[1743282961143,2.07816412,602.57,602.01,0.28889258]
[1743282961444,0.936,602.57,602.01,0.28889258]
[1743282962742,1.14200744,602.56,602.03,1.23690288]
[1743282963145,0.936,602.57,602.03,1.23690288]
[1743282964144,1.854,602.57,602.03,1.23690288]
[1743282964346,1.14204704,602.56,602.03,1.23690288]
[1743282964840,1.14204704,602.56,602.04,1.23690288]
[1743282965045,1.854,602.57,602.04,1.23690288]
[1743282967046,1.854,602.57,602.07,1.23690288]
[1743282969647,1.854,602.57,602.06,1.23690288]
[1743282971244,1.854,602.57,602.07,1.23690288]
[1743282972650,1.854,602.57,602.08,1.23690288]
[1743282973843,3.147,602.57,602.08,1.23690288]
[1743282975247,3.147,602.57,602.09,0.33217625]
[1743282976449,3.147,602.57,602.14,1.23690288]
[1743282976646,3.147,602.57,602.15,0.33214315]
[1743282977144,4.095,602.57,602.15,0.33214315]
[1743282991151,4.73,602.57,602.15,0.33214315]
[1743282992156,4.73,602.57,602.24,1.23690288]
[1743282993359,4.73,602.57,602.25,1.23690288]
[1743282995261,4.73,602.57,602.19,1.23690288]
[1743282996161,5.881,602.57,602.19,1.23690288]
[1743282997756,5.881,602.57,602.05,0.28884582]
[1743282999965,5.881,602.57,601.59,1.23690288]
[1743283000166,1.43654888,602.56,601.89,0.28894415]
[1743283000358,1.43654888,602.55,601.89,0.28894415]
[1743283000561,1.43654888,602.54,601.59,1.23690288]
[1743283000764,1.43654888,602.53,601.59,1.23690288]
[1743283000964,1.43654888,602.52,601.59,1.23690288]
[1743283001157,1.43654888,602.51,601.59,1.23690288]
[1743283001363,1.43654888,602.5,601.6,0.62140774]
[1743283001564,1.14122828,602.55,601.6,0.62140774]
[1743283001764,1.14122828,602.51,601.6,0.62140774]
[1743283001963,1.43599119,602.5,601.61,0.33244128]
[1743283002160,1.14122828,602.51,601.61,0.33244128]
[1743283002360,1.14122828,602.5,601.61,0.33244128]
[1743283002861,1.14122828,602.49,601.61,0.33244128]
[1743283003069,0.936,602.48,601.61,0.33244128]
[1743283003265,2.135,602.48,601.61,0.33244128]
[1743283003662,1.14122828,602.47,601.61,0.33244128]
[1743283004367,2.60963551,602.46,601.67,1.23690288]
[1743283004566,1.174,602.46,601.68,0.3324026]
[1743283005663,1.43462256,602.45,601.68,0.3324026]
[1743283005870,1.43462256,602.44,601.68,0.3324026]
[1743283006063,1.43462256,602.43,601.78,1.23690288]
[1743283006269,1.43462256,602.42,601.78,1.23690288]
[1743283006470,1.43462256,602.41,601.78,1.23690288]
[1743283006670,2.07062256,602.4,601.78,1.23690288]
[1743283006867,1.4336886,602.39,601.78,1.23690288]
[1743283007066,1.4336886,602.38,601.78,1.23690288]
[1743283007366,1.4336886,602.37,601.78,1.23690288]
[1743283007566,1.4336886,602.36,601.78,1.23690288]
[1743283007766,1.4336886,602.35,601.78,1.23690288]
[1743283007971,1.4336886,602.34,601.68,0.3324026]
[1743283008166,1.406,602.36,601.68,0.3324026]
[1743283008466,1.13978051,602.33,601.68,0.3324026]
[1743283009172,1.13978051,602.32,601.68,0.3324026]
[1743283009869,1.13978051,602.31,601.68,0.3324026]
[1743283010668,1.13978051,602.3,601.68,0.3324026]
[1743283011677,2.56984362,602.29,601.68,0.3324026]
[1743283011872,1.43003788,602.28,601.68,0.3324026]
[1743283012075,1.13978051,602.29,601.68,0.3324026]
[1743283012375,1.42995442,602.28,601.68,0.3324026]
[1743283012576,1.13978051,602.28,601.68,0.3324026]
[1743283013376,1.406,602.36,601.68,0.3324026]
[1743283013377,1.13978051,602.27,601.68,0.3324026]
[1743283014076,1.13978051,602.26,601.68,0.3324026]
[1743283015076,1.13978051,602.25,601.68,0.3324026]
[1743283015878,1.13978051,602.24,601.68,0.3324026]
[1743283016779,1.406,602.36,601.68,0.3324026]
[1743283017078,1.42774113,602.35,601.68,0.3324026]
[1743283017277,1.42789342,602.34,601.68,0.3324026]
[1743283017477,1.42789342,602.33,601.68,0.3324026]
[1743283017675,1.42789342,602.32,601.68,0.3324026]
[1743283017873,1.42789342,602.31,601.68,0.3324026]
[1743283018073,1.13460505,602.34,601.68,0.3324026]
[1743283018279,1.4275871,602.33,601.68,0.3324026]
[1743283018475,1.13460505,602.3,601.68,0.3324026]
[1743283019074,1.406,602.36,601.68,0.3324026]
[1743283019277,1.42734048,602.35,601.68,0.3324026]
[1743283019477,1.42734048,602.34,601.68,0.3324026]
[1743283019680,2.56139842,602.33,601.68,0.3324026]
[1743283019882,1.13405794,602.33,601.68,0.3324026]
[1743283020076,1.13405794,602.32,601.68,0.3324026]
[1743283020584,3.23405794,602.32,601.68,0.3324026]
[1743283021080,2.1,602.32,601.68,0.3324026]
[1743283025586,3.403,602.32,601.68,0.3324026]
[1743283028091,2.56141083,602.31,601.68,0.3324026]
[1743283028291,1.42732347,602.3,601.68,0.3324026]
[1743283028492,1.42732347,602.29,601.68,0.3324026]
[1743283028686,1.42732347,602.28,601.68,0.3324026]
[1743283028892,1.42732347,602.27,601.68,0.3324026]
[1743283029091,1.42732347,602.26,601.68,0.3324026]
[1743283029291,1.42732347,602.25,601.68,0.3324026]
[1743283029493,1.42732347,602.24,601.68,0.3324026]
[1743283029793,1.42732347,602.23,601.68,0.3324026]
[1743283029993,1.42732347,602.22,601.68,0.3324026]
[1743283030194,1.42732347,602.21,601.68,0.3324026]
[1743283030493,1.42732347,602.2,601.68,0.3324026]
[1743283030693,1.42732347,602.19,601.68,0.3324026]
[1743283030895,1.42732347,602.18,601.68,0.3324026]
[1743283031195,1.42732347,602.17,601.68,0.3324026]
[1743283031390,1.13408736,602.2,601.68,0.3324026]
[1743283031589,1.13408736,602.16,601.68,0.3324026]
[1743283031787,3.70742879,602.15,601.68,0.3324026]
[1743283031989,4.37178676,602.14,601.68,0.3324026]
[1743283032193,4.37178676,602.13,601.68,0.3324026]
[1743283032491,4.37178676,602.12,601.68,0.3324026]
[1743283032692,4.37178676,602.11,601.68,0.3324026]
[1743283032897,4.37178676,602.1,600.81,1.23690288]
[1743283033095,4.37178676,602.09,601.47,0.28913621]
[1743283033295,4.37178676,602.08,601.47,0.28913621]
[1743283033495,4.37178676,602.07,600.83,0.33287285]
[1743283033696,4.37178676,602.06,600.83,0.33287285]
[1743283033895,4.37178676,602.05,600.83,0.33287285]
[1743283034094,4.37178676,602.04,600.83,0.33287285]
[1743283034292,4.37178676,602.03,600.83,0.33287285]
[1743283034492,4.37178676,602.02,600.83,0.33287285]
[1743283034694,4.37178676,602.01,601.11,1.23690288]
[1743283034998,4.37178676,602.0,601.11,1.23690288]
[1743283035194,4.37178676,601.99,601.12,0.33271227]
[1743283035394,4.37178676,601.98,601.12,0.33271227]
[1743283035590,4.37178676,601.97,601.12,0.33271227]
[1743283035893,3.70742879,601.96,601.12,0.33271227]
[1743283036093,3.70742879,601.95,601.12,0.33271227]
[1743283036297,3.70742879,601.94,601.12,0.33271227]
[1743283036496,3.70742879,601.93,601.12,0.33271227]
[1743283036689,1.42620282,601.92,601.12,0.33271227]
[1743283036893,1.42620282,601.91,601.12,0.33271227]
[1743283037090,1.42620282,601.9,601.12,0.33271227]
[1743283037294,1.42620282,601.89,601.12,0.33271227]
[1743283037498,1.42620282,601.88,601.12,0.33271227]
[1743283037699,1.42620282,601.87,601.12,0.33271227]
[1743283037898,1.77008736,601.89,601.12,0.33271227]
[1743283038201,1.13408736,601.86,601.12,0.33271227]
[1743283039200,0.636,601.89,601.12,0.33271227]
[1743283039400,1.42143069,601.88,601.12,0.33271227]
[1743283039594,1.42132341,601.87,601.12,0.33271227]
[1743283039795,1.1296111,601.87,601.12,0.33271227]
[1743283041003,0.636,601.89,601.12,0.33271227]
[1743283041202,1.42154315,601.88,601.12,0.33271227]
[1743283041398,0.636,601.89,601.12,0.33271227]
[1743283041605,1.422155,601.88,601.12,0.33271227]
[1743283041796,0.636,601.89,601.12,0.33271227]
[1743283042001,1.13035273,601.88,601.12,0.33271227]
[1743283042302,1.303,601.87,601.12,0.33271227]
[1743283043805,1.303,601.87,601.13,1.23690288]
[1743283044005,1.303,601.87,601.14,0.3327012]
[1743283046601,1.352,601.86,601.2,1.23690288]
[1743283046804,1.352,601.86,601.21,0.33266246]
[1743283050712,0.937,601.85,601.21,0.33266246]
[1743283057407,1.424,601.84,601.21,0.33266246]
[1743283057811,0.636,601.83,601.21,0.33266246]
[1743283058813,0.636,601.83,601.23,1.23690288]
[1743283059113,0.636,601.83,601.24,0.33264586]
[1743283060910,1.896,601.83,601.24,0.33264586]
[1743283061416,1.896,601.83,601.35,1.23690288]
[1743283061714,1.896,601.83,601.36,0.33257948]
[1743283062611,3.097,601.83,601.36,0.33257948]
[1743283063213,3.097,601.83,601.43,1.23690288]
[1743283063417,3.097,601.83,601.44,0.33253524]
[1743283064610,3.097,601.83,601.52,1.23690288]
[1743283066016,3.097,601.83,601.53,1.23690288]
[1743283068211,3.097,601.83,601.6,1.23690288]
[1743283070217,3.097,601.83,601.63,1.23690288]
[1743283072614,3.097,601.83,601.61,1.23690288]
[1743283074622,3.097,601.83,601.64,1.23690288]
[1743283076021,1.837,601.83,601.64,1.23690288]
[1743283076222,1.837,601.83,601.65,1.23690288]
[1743283077716,1.837,601.83,601.67,1.23690288]
[1743283079425,1.837,601.83,601.68,1.23690288]
[1743283081128,1.837,601.83,601.44,0.33253524]
[1743283081129,1.837,601.83,601.65,1.23690288]
[1743283084334,1.837,601.83,601.61,1.23690288]
[1743283086632,1.837,601.83,601.44,0.33253524]
[1743283098247,2.774,601.83,601.44,0.33253524]
[1743283100146,4.076,601.83,601.44,0.33253524]
[1743283106550,5.159,601.83,601.44,0.33253524]
[1743283109156,5.159,601.83,601.27,1.23690288]
[1743283109550,5.159,601.83,595.38,5.95629844]
[1743283109750,5.159,601.83,599.88,0.33340001]
[1743283109949,5.159,601.83,601.27,0.28924675]
[1743283110153,5.159,601.83,599.88,0.33340001]
[1743283110454,5.159,601.83,601.27,0.28941394]
[1743283110855,5.159,601.83,599.88,0.33340001]
[1743283111256,5.159,601.83,599.89,0.28948014]
[1743283111457,5.159,601.83,601.28,1.24106098]
[1743283113158,5.159,601.83,601.29,1.24106098]
[1743283115859,5.159,601.83,601.33,1.24106098]
[1743283116955,6.396,601.83,601.34,1.24106098]
[1743283119258,6.396,601.83,601.35,1.24106098]
[1743283120355,8.056,601.83,601.35,1.24106098]
[1743283121262,8.056,601.83,601.44,1.24106098]
[1743283123165,8.056,601.83,601.43,1.24106098]
[1743283128971,8.056,601.83,601.46,1.24106098]
[1743283131172,8.056,601.83,601.18,0.2892131]
[1743283131173,8.056,601.83,601.5,1.24106098]
[1743283134171,8.056,601.83,601.54,1.24106098]
[1743283135975,8.056,601.83,601.59,1.24106098]
[1743283137877,8.056,601.83,601.45,1.48927317]
[1743283137878,8.056,601.83,601.58,1.24106098]
[1743283141581,8.056,601.83,601.51,1.24106098]
[1743283143383,1.14444996,601.82,601.51,1.24106098]
[1743283143792,1.14444996,601.82,601.16,2.53383283]
[1743283143793,1.14444996,601.81,601.41,1.24106098]
[1743283144280,1.46632098,602.04,601.41,1.24106098]
[1743283144478,6.7935236,602.03,601.41,1.24106098]
[1743283144681,1.6463669,602.06,601.41,1.24106098]
[1743283144682,6.7935236,602.02,601.41,1.24106098]
[1743283144986,5.32720262,602.01,601.41,1.24106098]
[1743283145284,5.32720262,602.0,601.41,1.24106098]
[1743283145487,5.32720262,601.99,601.41,1.24106098]
[1743283145679,5.32720262,601.98,601.41,1.24106098]
[1743283145986,5.32720262,601.97,601.42,1.24106098]
[1743283146284,8.96893473,601.96,601.42,1.24106098]
[1743283146485,5.32720262,601.95,601.42,1.24106098]
[1743283146685,4.41056809,601.94,601.42,1.24106098]
[1743283146885,3.74608676,601.93,601.42,1.24106098]
[1743283147087,5.32699856,601.92,601.42,1.24106098]
[1743283147286,4.66240723,601.91,601.42,1.24106098]
[1743283147487,3.74588032,601.9,601.42,1.24106098]
[1743283147680,3.74583654,601.89,601.42,1.24106098]
[1743283147883,3.74583654,601.88,601.42,1.24106098]
[1743283148085,3.74583654,601.87,601.43,1.24106098]
[1743283148284,3.74583654,601.86,601.43,1.24106098]
[1743283148481,3.74583654,601.85,601.43,1.24106098]
[1743283148685,3.74583654,601.84,601.43,1.24106098]
[1743283148884,1.44070636,601.83,601.43,1.24106098]
[1743283149089,1.44070636,601.82,601.43,1.24106098]
[1743283149287,1.44070636,601.81,601.43,1.24106098]
[1743283149488,1.44070636,601.8,601.43,1.24106098]
[1743283149688,1.44070636,601.79,601.43,1.24106098]
[1743283149888,1.44070636,601.78,601.43,1.24106098]
[1743283150088,1.44070636,601.77,601.43,1.24106098]
[1743283150288,2.9772514,601.81,601.43,1.24106098]
[1743283150589,1.14509669,601.77,601.32,1.53027889]
[1743283151788,1.14509669,601.76,601.32,1.53027889]
[1743283152287,2.258,601.91,601.32,1.53027889]
[1743283152483,3.74380171,601.9,601.34,1.24106098]
[1743283152682,3.74380171,601.89,601.34,1.24106098]
[1743283152883,3.74380171,601.88,601.34,1.24106098]
[1743283153086,3.7436296,601.87,601.34,1.24106098]
[1743283153287,3.7436296,601.86,601.34,1.24106098]
[1743283153487,3.7436296,601.85,601.34,1.24106098]
[1743283153688,1.43985754,601.84,601.34,1.24106098]
[1743283153992,1.43985754,601.83,601.38,1.24106098]
[1743283154191,1.43985754,601.82,601.38,1.24106098]
[1743283154493,1.14438728,601.82,601.38,1.24106098]
[1743283154892,1.14438728,601.81,601.38,1.24106098]
[1743283155886,1.14438728,601.8,601.38,1.24106098]
[1743283156286,2.258,601.91,601.38,1.24106098]
[1743283156487,1.43966294,601.9,601.38,1.24106098]
[1743283156688,1.43966294,601.89,601.38,1.24106098]
[1743283156988,1.43966294,601.88,601.41,1.24106098]
[1743283157189,1.14417623,601.89,601.41,1.24106098]
[1743283157390,1.43972726,601.88,601.41,1.24106098]
[1743283157591,1.14417623,601.88,601.41,1.24106098]
[1743283158594,1.14417623,601.87,601.41,1.24106098]
[1743283158897,1.14417623,601.87,601.51,1.24106098]
[1743283159598,2.258,601.91,601.51,1.24106098]
[1743283159796,1.43970555,601.9,601.51,1.24106098]
[1743283159994,2.258,601.91,601.51,1.24106098]
[1743283159995,1.43970555,601.89,601.51,1.24106098]
[1743283160194,2.258,601.91,601.51,1.24106098]
[1743283160389,1.43972029,601.9,601.51,1.24106098]
[1743283160594,1.43972029,601.89,601.51,1.24106098]
[1743283160893,1.43972029,601.88,601.51,1.24106098]
[1743283161092,1.14423018,601.89,601.51,1.24106098]
[1743283161393,1.43961428,601.88,601.51,1.24106098]
[1743283161594,1.14423018,601.89,601.51,1.24106098]
[1743283161795,1.14423018,601.87,601.51,1.24106098]
[1743283162194,1.14423018,601.86,601.51,1.24106098]
[1743283162391,1.14423018,601.86,601.52,1.24106098]
[1743283162596,1.43952876,601.85,601.52,1.24106098]
[1743283162891,2.58375894,601.84,601.52,1.24106098]
[1743283163095,1.14423018,601.84,601.52,1.24106098]
[1743283163394,1.43950521,601.83,601.52,1.24106098]
[1743283163597,1.14423018,601.84,601.52,1.24106098]
[1743283163797,1.14423018,601.83,601.52,1.24106098]
[1743283164398,1.14423018,601.82,601.44,1.24106098]
[1743283165200,1.14423018,601.81,601.44,1.24106098]
[1743283166101,1.321,601.91,601.44,1.24106098]
[1743283166299,1.43963153,601.9,601.44,1.24106098]
[1743283166497,1.43963153,601.89,601.4,1.24106098]
[1743283166694,1.43963153,601.88,601.4,1.24106098]
[1743283166901,1.43963153,601.87,601.4,1.24106098]
[1743283167199,1.43963153,601.86,601.4,1.24106098]
[1743283167400,1.43963153,601.85,601.4,1.24106098]
[1743283167596,1.14418099,601.86,601.4,1.24106098]
[1743283168201,1.14418099,601.86,601.43,1.24106098]
[1743283168496,2.41118099,601.85,601.43,1.24106098]
[1743283169000,0.937,601.84,601.43,1.24106098]
[1743283169404,2.08118099,601.84,601.43,1.24106098]
[1743283169801,2.08118099,601.84,601.46,1.24106098]
[1743283169994,0.937,601.84,601.46,1.24106098]
[1743283171196,0.937,601.84,601.29,1.48927317]
[1743283171197,0.937,601.84,601.45,1.24106098]
[1743283172201,1.481,601.83,601.45,1.24106098]
[1743283173101,1.481,601.83,601.41,1.24106098]
[1743283174704,1.481,601.83,601.55,1.24106098]
[1743283175398,2.117,601.83,601.55,1.24106098]
[1743283178502,3.195,601.83,601.55,1.24106098]
[1743283178903,3.195,601.83,601.54,1.24106098]
[1743283180805,3.195,601.83,601.5,1.24106098]
[1743283182108,3.195,601.83,601.5,1.57356305]
[1743283182509,3.195,601.83,601.51,0.33249655]
[1743283185310,3.195,601.83,601.67,1.24106098]
[1743283186911,3.195,601.83,601.51,0.62158472]
[1743283188908,3.195,601.83,601.51,0.33249655]
[1743283189311,3.195,601.83,601.51,0.62160393]
[1743283189510,4.132,601.83,601.51,0.62160393]
[1743283191908,4.132,601.83,601.51,0.33249655]
[1743283192108,4.132,601.83,601.51,0.62161594]
[1743283194609,5.341,601.83,601.51,0.62161594]
[1743283194813,5.341,601.83,601.51,0.33249655]
[1743283195412,5.341,601.83,601.51,0.62166639]
[1743283197913,5.341,601.83,601.51,0.33249655]
[1743283198117,5.341,601.83,601.51,0.62156551]
[1743283200616,5.341,601.83,601.56,1.24106098]
[1743283200819,5.341,601.83,601.57,0.33246338]
[1743283207326,6.319,601.83,601.57,0.33246338]
[1743283215635,6.319,601.83,601.64,1.24106098]
[1743283215835,6.319,601.83,601.65,0.33241918]
[1743283216036,3.265,601.83,601.65,0.33241918]
[1743283217635,3.265,601.83,601.77,1.24106098]
[1743283217833,3.265,601.83,601.78,0.33234736]
[1743283219638,2.056,601.83,601.78,0.33234736]
[1743283226347,1.078,601.83,601.78,0.33234736]
[1743283231752,1.078,601.83,601.8,1.24106098]
[1743283232351,1.078,601.83,601.81,0.3323308]
[1743283235351,5.772,602.01,601.81,0.3323308]
[1743283239959,5.772,602.01,601.83,1.23676884]
[1743283240159,5.772,602.01,601.84,0.33231423]
[1743283241955,5.772,602.01,601.89,1.23676884]
[1743283242559,4.218,602.01,601.89,1.23676884]
[1743283243361,2.456,602.01,601.89,1.23676884]
[1743283243663,2.456,602.01,601.94,1.23676884]
[1743283245065,1.241,602.01,601.94,1.23676884]
[1743283245864,2.07,602.04,601.97,1.23676884]